fUST/lending_fUST_20250928
["ID","MTS","AMOUNT","RATE_DAILY","PERIOD"]
[388190730,1759035031938,-152.0,0.00034327,34]
[388190732,1759035031947,-400.0,0.00034498,2]
[388190733,1759035031955,-500.0,0.00034499,7]
[388190735,1759035031965,-500.0,0.00034499,7]
[388190739,1759035031985,-500.0,0.00034499,7]
[388190741,1759035031994,-500.0,0.00034499,7]
[388190743,1759035032003,-500.0,0.00034499,7]
[388190745,1759035032012,-500.0,0.00034499,7]
[388190747,1759035032022,-500.0,0.00034499,7]
[388190749,1759035032032,-500.0,0.00034499,7]
[388190750,1759035032041,-627.38955689,0.00034499,7]
[388190752,1759035032051,-627.38955689,0.00034499,7]
[388190754,1759035032060,-627.38955689,0.00034499,7]
[388190756,1759035032069,-627.38955689,0.00034499,7]
[388190758,1759035032079,-627.38955689,0.00034499,7]
[388190760,1759035032088,-627.38955689,0.00034499,7]
[388190762,1759035032098,-627.38955689,0.00034499,7]
[388190764,1759035032108,-627.38955689,0.00034499,7]
[388190766,1759035032118,-627.38955689,0.00034499,7]
[388190768,1759035032127,-627.38955689,0.00034499,7]
[388190770,1759035032137,-627.38955689,0.00034499,7]
[388190772,1759035032146,-627.38955689,0.00034499,7]
[388190774,1759035032155,-627.38955689,0.00034499,7]
[388190776,1759035032165,-616.0616899,0.00034499,7]
[388190778,1759035032174,-616.0616899,0.00034499,7]
[388190780,1759035032183,-616.0616899,0.00034499,7]
[388190782,1759035032192,-616.0616899,0.00034499,7]
[388190784,1759035032203,-616.0616899,0.00034499,7]
[388190786,1759035032212,-27820.60478348,0.000345,24]
[388190943,1759035037615,-594.72798959,0.000345,24]
[388190961,1759035037777,-31062.06898416,0.000345,24]
[388190963,1759035037786,-151.0,0.0003458,30]
[388190965,1759035037795,-346.73574008,0.00034612,2]
[388190967,1759035037804,-160.49395567,0.00034612,2]
[388190969,1759035037814,-219.18979326,0.00034612,2]
[388190971,1759035037823,-175.12017754,0.0003463,30]
[388190973,1759035037833,-175.12017753,0.0003463,30]
[388190975,1759035037842,-248.79565152,0.00034813,2]
[388190977,1759035037851,-233.82138094,0.00034895,2]
[388190979,1759035037859,-189.35579204,0.00034895,2]
[388190981,1759035037868,-979.0,0.00034926,2]
[388190983,1759035037878,-2161.0,0.00034926,2]
[388190985,1759035037888,-635.0,0.00034926,2]
[388190987,1759035037897,-416.75,0.00034926,2]
[388190989,1759035037908,-150.46,0.00034926,2]
[388190991,1759035037920,-1164.0,0.00035,7]
[388190993,1759035037929,-160.0,0.00035096,7]
[388190995,1759035037938,-151.0,0.00035164,30]
[388190997,1759035037948,-469.99451202,0.00035319,2]
[388190999,1759035037957,-196.66817008,0.00035321,2]
[388191001,1759035037966,-151.0,0.00035369,7]
[388191003,1759035037975,-151.0,0.00035369,7]
[388191005,1759035037985,-500.0,0.00035369,7]
[388191007,1759035037993,-151.0,0.00035369,7]
[388191009,1759035038002,-151.65345584,0.00035369,7]
[388191011,1759035038012,-151.0,0.00035369,7]
[388191013,1759035038021,-151.0,0.00035369,7]
[388191015,1759035038030,-200.66754909,0.00035369,7]
[388191017,1759035038040,-151.0,0.00035369,7]
[388191019,1759035038050,-196.66817005,0.0003537,2]
[388191021,1759035038059,-233.82138094,0.00035386,3]
[388191023,1759035038068,-8615.61510924,0.00035396,3]
[388191024,1759035038107,-71.23230669,0.00035396,3]
[388191025,1759035038415,-9822.90704504,0.00035396,3]
[388191371,1759035046066,-2310.51154075,0.00035396,3]
[388191659,1759036035131,-189.35579204,0.00028,10]
[388191660,1759036035150,-26.91395124,0.00031317,7]
[388191661,1759036156078,-500.0,0.00031228,7]
[388191663,1759036232000,-484.68436027,0.00032626,7]
[388191729,1759036237867,-105.58471536,0.00032626,7]
[388191731,1759036237877,-216.64997554,0.00032877,2]
[388191737,1759036237922,-49.42711246,0.00032877,2]
[388191739,1759036237932,-286.21,0.00033011,14]
[388191741,1759036237942,-38.84892614,0.00033559,15]
[388191742,1759036237954,-247.36107386,0.00033559,15]
[388191743,1759036237963,-473.08604876,0.00033972,7]
[388191744,1759036237971,-286.21,0.00034107,16]
[388191745,1759036237981,-175.12017753,0.00034192,30]
[388191746,1759036237990,-500.0,0.00034387,7]
[388191747,1759036237999,-175.12017753,0.0003463,30]
[388191748,1759036238008,-286.21,0.00034655,17]
[388191749,1759036238017,-400.0,0.00034742,2]
[388191750,1759036238026,-500.0,0.00034742,7]
[388191751,1759036238035,-500.0,0.00034742,7]
[388191752,1759036238043,-254.84343157,0.00034742,7]
[388191753,1759036238052,-1199.9437294,0.00034744,2]
[388191754,1759036238061,-150.543,0.00034926,2]
[388191755,1759036238070,-979.0,0.00034926,2]
[388191756,1759036238079,-2161.0,0.00034926,2]
[388191757,1759036238088,-635.0,0.00034926,2]
[388191758,1759036238098,-410.0,0.00034926,2]
[388191759,1759036238107,-160.0,0.00034938,2]
[388191760,1759036238116,-500.0,0.00034989,7]
[388191761,1759036238125,-500.0,0.00034989,7]
[388191762,1759036238134,-512.21900409,0.00034989,7]
[388191763,1759036238143,-500.0,0.00034989,7]
[388191764,1759036238151,-500.0,0.00034989,7]
[388191765,1759036238160,-500.0,0.00034989,7]
[388191766,1759036238169,-500.0,0.00034989,7]
[388191767,1759036238178,-23983.03032635,0.0003499,2]
[388191768,1759036238187,-168.0,0.00035158,2]
[388191769,1759036238195,-286.21,0.00035203,18]
[388191770,1759036238204,-313.32967468,0.00035269,2]
[388191771,1759036238213,-196.66817005,0.00035278,2]
[388191772,1759036238222,-1218.725771,0.00035285,3]
[388191773,1759036238231,-80996.2693455,0.00035286,2]
[388191774,1759036238239,-1847.42859622,0.00035296,2]
[388200348,1759037240123,-500.0,0.00031666,7]
[388200349,1759037240144,-252.773233,0.00032877,2]
[388200350,1759037240163,-160.0,0.00033507,3]
[388200351,1759037240183,-741.0,0.00034884,3]
[388200352,1759037240204,-400.0,0.00034884,2]
[388200353,1759037240224,-164.7046121,0.00034885,3]
[388200355,1759037313118,366.49426001,0.0002,2]
[388200356,1759037313341,8557.18271328,0.00015,2]
[388200357,1759037313496,1076.33302671,0.00025,2]
[388200358,1759037313519,10000.01,0.00025,2]
[388200359,1759037313540,5896.52761728,0.00025,2]
[388200364,1759037350097,-2169.48616029,0.00028989,2]
[388200365,1759037350117,-318.53434608,0.00029,3]
[388200366,1759037350137,-514.28818254,0.0003,120]
[388200367,1759037352074,-400.0,0.00030998,2]
[388200368,1759037352096,-500.0,0.00030999,2]
[388200369,1759037352117,-500.0,0.00030999,2]
[388200370,1759037352139,-500.0,0.00030999,2]
[388200371,1759037352159,-500.0,0.00030999,2]
[388200372,1759037352179,-386.1008,0.00030999,2]
[388200374,1759037366121,-113.8992,0.00030999,2]
[388200375,1759037366140,-159.37712517,0.00030999,2]
[388200376,1759037366159,-500.0,0.00030999,2]
[388200377,1759037366179,-500.0,0.00030999,2]
[388200378,1759037366198,-500.0,0.00030999,2]
[388200379,1759037366217,-500.0,0.00030999,2]
[388200380,1759037366236,-500.0,0.00030999,2]
[388200381,1759037366255,-500.0,0.00030999,2]
[388200382,1759037366274,-500.0,0.00030999,2]
[388200383,1759037366292,-500.0,0.00030999,2]
[388200384,1759037366315,-172.30694472,0.00030999,2]
[388200385,1759037366335,-500.0,0.00030999,2]
[388200386,1759037366353,-500.0,0.00030999,2]
[388200387,1759037366372,-3166.53945129,0.00031,120]
[388200406,1759037432192,-504.955176,0.00032787,7]
[388200408,1759037432201,-274.13079863,0.00033041,120]
[388200417,1759037432276,-328.59703599,0.00033041,120]
[388200419,1759037432285,-146.53474622,0.00033819,2]
[388200523,1759037438290,-500.0,0.00033818,2]
[388200524,1759037438299,-314.63156332,0.00033818,2]
[388200525,1759037438309,-3038.00234492,0.00033819,2]
[388200526,1759037438319,-400.0,0.00034884,2]
[388200527,1759037438328,-196.0,0.00034884,3]
[388200528,1759037438338,-5000.0,0.00034888,4]
[388200529,1759037438348,-390.7053389,0.000349,30]
[388200530,1759037438357,-390.7053389,0.000349,30]
[388200531,1759037438366,-390.4248062,0.000349,30]
[388200532,1759037438375,-979.0,0.00034989,2]
[388200533,1759037438385,-410.0,0.00034989,2]
[388200534,1759037438394,-2161.0,0.00034989,2]
[388200535,1759037438404,-2962.0577768,0.00034989,2]
[388200536,1759037438413,-2598.35261273,0.00035,7]
[388200537,1759037438423,-150.75630184,0.00035073,2]
[388200538,1759037438432,-196.66817005,0.00035095,2]
[388200539,1759037438441,-500.0,0.00035171,7]
[388200540,1759037438451,-500.0,0.00035171,7]
[388200541,1759037438460,-500.0,0.00035171,7]
[388200542,1759037438469,-500.0,0.00035171,7]
[388200543,1759037438479,-500.0,0.00035171,7]
[388200544,1759037438488,-500.0,0.00035171,7]
[388200545,1759037438497,-500.0,0.00035171,7]
[388200546,1759037438506,-437.07807875,0.00035171,7]
[388200563,1759037440135,-635.0,0.00034989,2]
[388200565,1759037440145,-62.92192125,0.00035171,7]
[388200567,1759037440154,-303.38119905,0.00035171,7]
[388200744,1759037547206,417.15472785,0.00025252,2]
[388200764,1759037913033,4103.48238272,0.0002487,7]
[388200765,1759037913054,10000.01,0.0002487,7]
[388200766,1759037913075,10000.01,0.0002487,7]
[388200767,1759037913096,10000.01,0.0002487,7]
[388200768,1759037913116,4384.48761728,0.0002487,7]
[388200820,1759038439103,-233.82138094,0.00029,10]
[388200821,1759038439125,-416.92994028,0.00030803,7]
[388200822,1759038454134,-225.88792492,0.00032877,2]
[388200885,1759038632459,-30.23274008,0.00032877,2]
[388200887,1759038632468,-1004.187926,0.00033091,3]
[388200889,1759038632477,-1000.0,0.00033559,30]
[388200891,1759038632487,-203.20436369,0.0003375,2]
[388200893,1759038632496,-243.0,0.00034,120]
[388200895,1759038632505,-185.8005778,0.00034091,2]
[388200897,1759038632513,-400.0,0.00034682,2]
[388200900,1759038632522,-981.0,0.00034684,3]
[388200902,1759038632531,-151.0,0.00034686,30]
[388200904,1759038632540,-500.0,0.00034917,7]
[388200907,1759038632549,-979.0,0.00034921,2]
[388200910,1759038632558,-2161.0,0.00034921,2]
[388200913,1759038632567,-635.0,0.00034921,2]
[388200916,1759038632576,-410.0,0.00034921,2]
[388200919,1759038632585,-2370.09383199,0.00034976,2]
[388200922,1759038632594,-204.06171096,0.00034989,2]
[388200925,1759038632603,-208.88644978,0.00034996,2]
[388200928,1759038632612,-243.46,0.00034999,14]
[388200931,1759038632621,-196.66817005,0.00035017,2]
[388200934,1759038632630,-879.89286052,0.00035065,7]
[388200937,1759038632639,-879.89286052,0.00035065,7]
[388200939,1759038632648,-879.89286052,0.00035065,7]
[388200941,1759038632656,-879.89286052,0.00035065,7]
[388200943,1759038632664,-212.24654969,0.00035065,7]
[388201411,1759038640655,-72.30570236,0.00034682,2]
[388201683,1759039220572,24124.6445671,0.00033817,60]
[388201725,1759039633092,-189.35579204,0.00028,10]
[388201726,1759039633113,-1031.928,0.00028767,120]
[388201727,1759039633133,-500.0,0.0003202,7]
[388201728,1759039633153,-243.314631,0.00032877,2]
[388201729,1759039633174,-500.0,0.00032999,2]
[388201730,1759039633197,-426.08297001,0.00032999,2]
[388201734,1759039653079,-500.0,0.00031061,7]
[388201735,1759039653100,-500.0,0.00031193,7]
[388201736,1759039653121,-73.91702999,0.00032999,2]
[388201737,1759039653142,-446.49891606,0.00032999,2]
[388201738,1759039653163,-400.0,0.00032999,2]
[388201739,1759039653183,-1060.19213925,0.00033,15]
[388201783,1759039832551,-400.0,0.00032999,2]
[388201784,1759039832560,-16969.74786075,0.00033,15]
[388201785,1759039832569,-164.423667,0.00033299,7]
[388201786,1759039832578,-961.28,0.00033835,120]
[388201787,1759039832587,-1000.0,0.00034,30]
[388201788,1759039832596,-1000.0,0.00034,30]
[388201789,1759039832606,-239.93738619,0.00034237,2]
[388201790,1759039832614,-410.0,0.00034632,2]
[388201791,1759039832623,-500.0,0.000348,7]
[388201792,1759039832632,-518.96,0.000348,30]
[388201794,1759039832640,-158.10763312,0.00034864,2]
[388201797,1759039832649,-208.88644977,0.00034878,2]
[388201798,1759039832658,-979.0,0.00034921,2]
[388201799,1759039832667,-2161.0,0.00034921,2]
[388201800,1759039832675,-635.0,0.00034921,2]
[388201802,1759039832685,-799.43451392,0.00034953,7]
[388201803,1759039832694,-799.43451392,0.00034953,7]
[388201804,1759039832703,-799.43451392,0.00034953,7]
[388201805,1759039832712,-799.43451392,0.00034953,7]
[388201806,1759039832721,-799.43451392,0.00034953,7]
[388201807,1759039832730,-684.5986941,0.00034953,7]
[388201808,1759039832840,-114.83581982,0.00034953,7]
[388201809,1759039832849,-206.35100163,0.00034953,7]
[388201828,1759039838620,-593.08351229,0.00034953,7]
[388201829,1759039838629,-799.43451392,0.00034953,7]
[388201830,1759039838639,-799.43451392,0.00034953,7]
[388201831,1759039838648,-799.43451392,0.00034953,7]
[388201832,1759039838657,-799.43451392,0.00034953,7]
[388201833,1759039838667,-799.43451392,0.00034953,7]
[388201834,1759039838676,-799.43451392,0.00034953,7]
[388201835,1759039838685,-799.43451392,0.00034953,7]
[388201836,1759039838694,-799.43451392,0.00034953,7]
[388201837,1759039838703,-609.3628855,0.00034954,3]
[388201838,1759039838712,-53858.5133018,0.00034955,2]
[388201839,1759039838721,-370000.0,0.00034965,2]
[388201840,1759039838730,-160.0,0.00034972,2]
[388201841,1759039838740,-366.94376865,0.00034989,2]
[388201842,1759039838749,-160.0,0.00035034,2]
[388201843,1759039838759,-7694.07332883,0.00035055,2]
[388201844,1759039838769,-151.0,0.00035059,7]
[388201845,1759039838778,-151.0,0.00035059,7]
[388201846,1759039838787,-151.0,0.00035059,7]
[388201847,1759039838797,-151.0,0.00035059,7]
[388201848,1759039838806,-151.0,0.00035059,7]
[388201849,1759039838815,-151.0,0.00035059,7]
[388201850,1759039838825,-151.0,0.00035059,7]
[388201851,1759039838834,-165.422701,0.00035059,7]
[388201852,1759039838843,-151.0,0.00035059,7]
[388201853,1759039838852,-151.0,0.00035059,7]
[388201854,1759039838862,-151.0,0.00035059,7]
[388201855,1759039838872,-151.0,0.00035059,7]
[388201856,1759039838881,-151.0,0.00035059,7]
[388201857,1759039838890,-151.0,0.00035059,7]
[388201858,1759039838899,-151.0,0.00035059,7]
[388201859,1759039838909,-246.232971,0.00035059,7]
[388201860,1759039838918,-152.578144,0.00035061,7]
[388201861,1759039838927,-151.0,0.00035061,7]
[388201862,1759039838936,-151.0,0.00035061,7]
[388201863,1759039838945,-151.0,0.00035064,7]
[388201864,1759039838955,-151.0,0.00035065,7]
[388201865,1759039838964,-500.0,0.00035065,7]
[388201866,1759039838973,-500.0,0.00035065,7]
[388201867,1759039838982,-151.0,0.00035065,7]
[388201868,1759039838992,-500.0,0.00035065,7]
[388201869,1759039839001,-151.0,0.00035065,7]
[388201870,1759039839011,-151.0,0.00035065,7]
[388201871,1759039839020,-500.0,0.00035065,7]
[388201872,1759039839029,-151.0,0.00035065,7]
[388201873,1759039839038,-151.0,0.00035065,7]
[388201874,1759039839048,-151.0,0.00035065,7]
[388201875,1759039839057,-151.0,0.00035065,7]
[388201876,1759039839066,-152.16751151,0.00035065,7]
[388201877,1759039839077,-151.0,0.00035065,7]
[388201878,1759039839086,-151.0,0.00035065,7]
[388201879,1759039839095,-151.0,0.00035065,7]
[388201880,1759039839105,-151.0,0.00035065,7]
[388201881,1759039839114,-151.0,0.00035065,7]
[388201882,1759039839123,-151.0,0.00035065,7]
[388201883,1759039839132,-151.0,0.00035065,7]
[388201884,1759039839141,-151.0,0.00035065,7]
[388201885,1759039839151,-167.476801,0.00035065,7]
[388201886,1759039839160,-151.0,0.00035065,7]
[388201887,1759039839169,-151.0,0.00035065,7]
[388201888,1759039839178,-151.0,0.00035065,7]
[388201889,1759039839187,-296.895621,0.00035065,7]
[388201890,1759039839196,-151.56241802,0.00035065,7]
[388201891,1759039839206,-151.0,0.00035065,7]
[388201892,1759039839215,-500.0,0.00035065,7]
[388201893,1759039839224,-500.0,0.00035065,7]
[388201894,1759039839233,-151.0,0.00035065,7]
[388201895,1759039839242,-158.53183125,0.00035065,7]
[388201896,1759039839252,-645.44,0.00035066,3]
[388201897,1759039839261,-151.0,0.00035066,7]
[388201898,1759039839270,-151.0,0.00035066,7]
[388201899,1759039839280,-151.0,0.00035066,7]
[388201900,1759039839291,-151.0,0.00035066,7]
[388201901,1759039839300,-249.22,0.00035075,14]
[388201902,1759039839311,-162.0,0.00035104,14]
[388201903,1759039839322,-162.0,0.00035104,14]
[388201904,1759039839331,-168.0,0.00035117,2]
[388201905,1759039839340,-151.0,0.00035135,30]
[388201906,1759039839351,-151.0,0.00035148,2]
[388201907,1759039839360,-2742.24612079,0.00035148,2]
[388201908,1759039839369,-500.0,0.00035174,120]
[388201909,1759039839379,-172.0,0.00035177,14]
[388201910,1759039839391,-162.44067088,0.00035177,14]
[388201911,1759039839400,-156.0,0.00035177,14]
[388201912,1759039839409,-156.0,0.00035177,14]
[388201913,1759039839419,-156.0,0.00035177,14]
[388201914,1759039839428,-156.0,0.00035177,14]
[388201915,1759039839437,-156.0,0.00035177,14]
[388201916,1759039839447,-156.0,0.00035177,14]
[388201917,1759039839456,-156.0,0.00035177,14]
[388201918,1759039839465,-329.0,0.00035177,14]
[388201919,1759039839475,-329.0,0.00035177,14]
[388201920,1759039839484,-329.0,0.00035177,14]
[388201921,1759039839494,-329.0,0.00035177,14]
[388201922,1759039839503,-329.0,0.00035177,14]
[388201923,1759039839512,-329.0,0.00035177,14]
[388201924,1759039839522,-1000.0,0.00035184,6]
[388201925,1759039839531,-1000.0,0.00035185,2]
[388201926,1759039839540,-1000.0,0.00035185,2]
[388201927,1759039839549,-1000.0,0.00035185,2]
[388201928,1759039839559,-1000.0,0.00035185,2]
[388201929,1759039839568,-1005.11738962,0.00035185,2]
[388201930,1759039839577,-162.87678413,0.00035187,14]
[388201931,1759039839773,-329.0,0.00035187,14]
[388201932,1759039839783,-329.0,0.00035187,14]
[388201933,1759039839792,-329.0,0.00035187,14]
[388201934,1759039839801,-329.0,0.00035187,14]
[388201935,1759039839810,-329.0,0.00035187,14]
[388201936,1759039839819,-329.0,0.00035187,14]
[388201937,1759039839828,-377.49185479,0.00035187,14]
[388201938,1759039839837,-189.35579204,0.0003525,2]
[388201939,1759039839846,-233.82138094,0.00035251,2]
[388201940,1759039839855,-250.0,0.00035284,3]
[388201941,1759039839864,-250.0,0.00035284,3]
[388201942,1759039839873,-250.0,0.00035284,3]
[388201943,1759039839882,-250.0,0.00035284,3]
[388201944,1759039839891,-394.72745501,0.00035284,3]
[388201945,1759039839900,-233.82138094,0.00035295,7]
[388201946,1759039839911,-500.0,0.00035311,120]
[388201947,1759039839920,-151.0,0.00035339,7]
[388201948,1759039839931,-578.86185286,0.00035339,7]
[388201949,1759039839940,-500.0,0.00035339,7]
[388201950,1759039839950,-151.0,0.00035339,7]
[388201951,1759039839959,-603.76112541,0.00035339,7]
[388201952,1759039839968,-151.0,0.00035339,7]
[388201953,1759039839978,-288.96086038,0.00035339,7]
[388201954,1759039839987,-500.0,0.00035339,7]
[388201955,1759039839997,-199.97386222,0.00035339,7]
[388201956,1759039840007,-199.60104652,0.00035339,7]
[388201957,1759039840016,-151.0,0.00035339,7]
[388201958,1759039840025,-245.93948262,0.00035339,7]
[388201959,1759039840035,-151.0,0.00035339,7]
[388201960,1759039840045,-255.65216159,0.00035339,7]
[388201961,1759039840054,-151.0,0.00035339,7]
[388201962,1759039840063,-500.0,0.00035339,7]
[388201963,1759039840073,-500.0,0.00035339,7]
[388201964,1759039840082,-151.0,0.00035339,7]
[388201966,1759039840091,-189.35579204,0.00035394,7]
[388201968,1759039840100,-151.0,0.000354,16]
[388201970,1759039840110,-151.0,0.00035422,2]
[388201972,1759039840119,-500.0,0.00035448,120]
[388201974,1759039840128,-560.0,0.00035456,2]
[388201976,1759039840137,-168.0,0.00035461,2]
[388201978,1759039840146,-233.82138094,0.0003549,3]
[388201980,1759039840155,-38470.3666441,0.0003549,3]
[388201983,1759039840165,-501.47628131,0.00035493,13]
[388201985,1759039840173,-111655.44998926,0.000355,24]
[388202069,1759039923709,503.97,0.00025252,2]
[388202072,1759040077391,5003.0,0.00025,15]
[388202323,1759040435970,90886.99948105,0.00033811,60]
[388202351,1759040761788,223.37,0.000249,2]
[388202352,1759040846285,-761.32083883,0.00028271,2]
[388202353,1759040846308,-500.0,0.0003167,7]
[388202354,1759040846332,-160.0,0.00032712,3]
[388202355,1759040846355,-231.148899,0.00032877,2]
[388202356,1759040846379,-189.35579204,0.00032989,2]
[388202357,1759040846406,-233.82138094,0.00032989,2]
[388202358,1759040846432,-400.0,0.0003299,2]
[388202359,1759040846456,-219.02449018,0.0003299,3]
[388202368,1759040922455,389.15238272,0.00021,2]
[388202369,1759040922477,57.41493752,0.00021,2]
[388202388,1759040954103,-284.81720082,0.0003013,2]
[388202389,1759040954122,-962.02695735,0.000302,2]
[388202390,1759040954142,-184.63386605,0.0003034,2]
[388202392,1759040956120,-3166.53945129,0.00031,120]
[388202394,1759040965077,-189.35579204,0.0003189,2]
[388202395,1759040965097,-854.71526695,0.00031916,7]
[388202396,1759040966000,233.82138094,0.0003189,2]
[388202422,1759041032048,-400.0,0.00032989,2]
[388202423,1759041032059,-991.97550982,0.0003299,3]
[388202424,1759041032068,-500.0,0.0003299,2]
[388202425,1759041032078,-500.0,0.0003299,2]
[388202426,1759041032087,-500.0,0.0003299,2]
[388202427,1759041032097,-500.0,0.0003299,2]
[388202428,1759041032106,-500.0,0.0003299,2]
[388202429,1759041032115,-500.0,0.0003299,2]
[388202430,1759041032124,-399.59537854,0.0003299,2]
[388202431,1759041032133,-500.0,0.0003299,2]
[388202432,1759041032143,-500.0,0.0003299,2]
[388202433,1759041032152,-500.0,0.0003299,2]
[388202434,1759041032161,-500.0,0.0003299,2]
[388202435,1759041032171,-500.0,0.0003299,2]
[388202436,1759041032180,-500.0,0.0003299,2]
[388202437,1759041032189,-500.0,0.0003299,2]
[388202438,1759041032198,-500.0,0.0003299,2]
[388202439,1759041032207,-500.0,0.0003299,2]
[388202440,1759041032216,-500.0,0.0003299,2]
[388202441,1759041032224,-500.0,0.0003299,2]
[388202442,1759041032233,-500.0,0.00032999,120]
[388202443,1759041032243,-1491.5710791,0.0003312,2]
[388202444,1759041032252,-500.0,0.00033136,120]
[388202445,1759041032261,-500.0,0.00033273,120]
[388202446,1759041032271,-500.0,0.0003341,120]
[388202447,1759041032280,-500.0,0.00033547,120]
[388202448,1759041032289,-151.0,0.00033656,7]
[388202449,1759041032298,-500.0,0.00033684,120]
[388202450,1759041032308,-203.73736773,0.00033723,2]
[388202451,1759041032317,-155.66238003,0.00033726,30]
[388202452,1759041032327,-175.12017752,0.00033726,30]
[388202453,1759041032336,-175.12017753,0.00033726,30]
[388202454,1759041032345,-500.0,0.00033821,120]
[388202455,1759041032357,-150.0,0.00033823,2]
[388202456,1759041032367,-7291.4717638,0.00033823,2]
[388202457,1759041032376,-2555.06400526,0.00033823,2]
[388202458,1759041032386,-157.71779032,0.00033823,2]
[388202459,1759041032395,-768.53850039,0.00033823,2]
[388202460,1759041032404,-1717.87105681,0.00033823,2]
[388202461,1759041032413,-2077.0718146,0.00033823,2]
[388202462,1759041032423,-290.598065,0.00033823,2]
[388202463,1759041032432,-507.87133814,0.00033823,2]
[388202464,1759041032441,-468.1173407,0.00033823,2]
[388202465,1759041032450,-179.39990818,0.00033823,2]
[388202466,1759041032460,-189.27602117,0.00033823,2]
[388202467,1759041032470,-1397.66009945,0.00033823,2]
[388202468,1759041032480,-5897.88454948,0.00033823,2]
[388202469,1759041032489,-651.55815533,0.00033823,2]
[388202470,1759041032500,-5011.25643128,0.00033823,2]
[388202471,1759041032511,-5357.68050574,0.00033823,2]
[388202474,1759041037792,-219.591454,0.00032877,2]
[388202475,1759041037801,-500.0,0.00032989,2]
[388202476,1759041037810,-488.84393095,0.00032989,2]
[388202477,1759041037819,-982.77975008,0.00033822,7]
[388202478,1759041037828,-982.77975008,0.00033822,7]
[388202479,1759041037837,-982.77975008,0.00033822,7]
[388202480,1759041037846,-982.77975008,0.00033822,7]
[388202481,1759041037855,-982.77975008,0.00033822,7]
[388202482,1759041037863,-982.77975008,0.00033822,7]
[388202483,1759041037872,-982.77975008,0.00033822,7]
[388202484,1759041037882,-982.77975008,0.00033822,7]
[388202485,1759041037896,-982.77975008,0.00033822,7]
[388202486,1759041037905,-982.77975008,0.00033822,7]
[388202487,1759041037914,-1759.47198732,0.00033823,2]
[388202488,1759041037922,-166.74648767,0.00033823,2]
[388202489,1759041037932,-151.0,0.00033825,60]
[388202490,1759041037941,-500.0,0.00033958,120]
[388202491,1759041037950,-155.66238003,0.00033973,30]
[388202492,1759041037962,-189.35579204,0.00033989,7]
[388202493,1759041037970,-233.82138094,0.00033989,7]
[388202494,1759041037979,-11692.9148884,0.0003399,2]
[388202495,1759041037988,-402.15332336,0.0003399,2]
[388202496,1759041037997,-1000.0,0.00033996,6]
[388202497,1759041038006,-100000.0,0.00034,24]
[388202498,1759041038015,-151.0,0.00034053,30]
[388202499,1759041038024,-500.0,0.00034095,120]
[388202500,1759041038032,-168.0,0.00034115,120]
[388202501,1759041038041,-175.12017754,0.00034192,30]
[388202502,1759041038050,-155.66238003,0.00034192,30]
[388202503,1759041038060,-175.12017752,0.00034192,30]
[388202504,1759041038070,-175.12017753,0.00034192,30]
[388202505,1759041038080,-175.12017753,0.00034192,30]
[388202506,1759041038090,-334.25818531,0.00034232,120]
[388202507,1759041038099,-168.0,0.00034239,2]
[388202508,1759041038108,-410.84075698,0.00034246,7]
[388202509,1759041038117,-483.03594874,0.00034246,120]
[388202510,1759041038126,-160.0,0.00034301,4]
[388202511,1759041038135,-168.0,0.00034307,7]
[388202512,1759041038144,-168.0,0.00034333,2]
[388202513,1759041038154,-296.96718048,0.00034335,2]